[Event "WYCC 2018 G18"]
[Site "Halkidiki"]
[Date "2018.10.20"]
[Round "1"]
[White "Egyed, Judit"]
[Black "Simic, Anja"]
[Result "1-0"]
[ECO "B90"]
[WhiteElo "2089"]
[BlackElo "1813"]
[Annotator "NA"]
[PlyCount "73"]
[EventDate "2018.10.20"]
[EventType "swiss"]
[EventCountry "GRE"]
[SourceTitle "playchess.com"]
[Source "ChessBase"]
[SourceQuality "1"]
[TimeControl "40/5400+30:1800+30"]

1. e4 {[%emt 0:00:00]} c5 {[%emt 0:00:00]} 2. Nf3 {[%emt 0:00:00]} d6 {[%emt 0:00:00]} 3. d4 {[%emt 0:00:00]} cxd4 {[%emt 0:00:06]} 4. Nxd4 {[%emt 0:00:02]} Nf6 {[%emt 0:00:17]} 5. Nc3 {[%emt 0:00:07]} a6 {[%emt 0:00:15]} 6. Be3 {[%emt 0:00:15]} e5 {[%emt 0:00:25]} 7. Nb3 {[%emt 0:00:04]} Be6 {[%emt 0:00:16]} 8. f3 {[%emt 0:00:07]} Be7 {[%emt 0:00:32]} 9. Qd2 {[%emt 0:00:13]} O-O {[%emt 0:01:04]} 10. O-O-O {[%emt 0:00:03]} Nbd7 {[%emt 0:00:54]} 11. g4 {[%emt 0:00:34]} b5 {[%emt 0:00:40]} 12. g5 {[%emt 0:00:20]} b4 {[%emt 0:01:08]} 13. Ne2 {[%emt 0:00:19]} Ne8 {[%emt 0:00:50]} 14. f4 {[%emt 0:00:20]} a5 {[%emt 0:10:57]} 15. f5 {[%emt 0:00:23]} a4 {[%emt 0:14:17]} 16. fxe6 {[%emt 0:00:55]} axb3 {[%emt 0:00:49]} 17. exf7+ {[%emt 0:00:09]} Rxf7 {[%emt 0:08:19]} 18. Kb1 {[%emt 0:00:12]} bxc2+ {[%emt 0:17:40]} 19. Qxc2 {[%emt 0:00:07]} Bxg5 {[%emt 0:17:51]} 20. Bxg5 {[%emt 0:00:05]} Qxg5 {[%emt 0:00:04]} 21. Ng3 {[%emt 0:00:09]} Rf4 {[%emt 0:07:42]} 22. Nf5 {[%emt 0:25:58]} Kh8 {[%emt 0:11:18]} 23. h4 {[%emt 0:04:56]} Qf6 {[%emt 0:02:18]} 24. Bb5 {[%emt 0:05:52]} Qf7 {[%emt 0:03:00]} 25. Bc4 {[%emt 0:02:04]} Qf8 {[%emt 0:00:49]} 26. Bd5 {[%emt 0:01:33]} Rb8 {[%emt 0:00:31]} 27. Rhf1 {[%emt 0:06:31]} Rxf1 {[%emt 0:00:46]} 28. Rxf1 {[%emt 0:00:04]} Nef6 {[%emt 0:00:31]} 29. Ne3 {[%emt 0:05:21]} Nc5 {[%emt 0:00:20]} 30. Qg2 {[%emt 0:03:12]} Qe7 {[%emt 0:00:44]} 31. Nf5 {[%emt 0:03:39]} Qf8 {[%emt 0:00:28]} 32. h5 {[%emt 0:09:25]} Nxh5 {[%emt 0:00:34]} 33. Rh1 {[%emt 0:14:45]} g6 {[%emt 0:00:26]} 34. Qg5 {[%emt 0:01:40]} gxf5 {[%emt 0:00:33]} 35. Qxh5 {[%emt 0:00:08]} h6 {[%emt 0:00:31]} 36. Qg6 {[%emt 0:00:19]} Qg7 {[%emt 0:00:30]} 37. Rxh6+ {[%emt 0:00:06]} 1-0

[Event "WYCC 2018 G18"]
[Site "Halkidiki"]
[Date "2018.10.20"]
[Round "1"]
[White "Limanovska, Elizabete"]
[Black "Tonso, Liina"]
[Result "1-0"]
[ECO "B41"]
[WhiteElo "2072"]
[BlackElo "1805"]
[Annotator "NA"]
[PlyCount "47"]
[EventDate "2018.10.20"]
[EventType "swiss"]
[EventCountry "GRE"]
[SourceTitle "playchess.com"]
[Source "ChessBase"]
[SourceQuality "1"]
[TimeControl "40/5400+30:1800+30"]

1. e4 {[%emt 0:00:00]} c5 {[%emt 0:00:00]} 2. Nf3 {[%emt 0:00:00]} e6 {[%emt 0:00:00]} 3. d4 {[%emt 0:00:00]} cxd4 {[%emt 0:00:00]} 4. Nxd4 {[%emt 0:00:00]} a6 {[%emt 0:00:08]} 5. c4 {[%emt 0:00:23]} Qc7 {[%emt 0:00:50]} 6. Nc3 {[%emt 0:01:56]} Nf6 {[%emt 0:00:37]} 7. Bd3 {[%emt 0:12:50]} b6 {[%emt 0:03:41]} 8. O-O {[%emt 0:07:16]} Be7 {[%emt 0:05:49]} 9. Be3 {[%emt 0:08:33]} Bb7 {[%emt 0:03:12]} 10. f4 {[%emt 0:00:59]} d6 {[%emt 0:02:11]} 11. Qe2 {[%emt 0:04:02]} O-O {[%emt 0:04:58]} 12. f5 {[%emt 0:03:32]} e5 $14 {[%emt 0:04:33]} 13. Nb3 {[%emt 0:04:50]} Nbd7 {[%emt 0:09:44]} 14. g4 {[%emt 0:05:55]} Nc5 {[%emt 0:03:57]} 15. Nxc5 {[%emt 0:00:20]} dxc5 {[%emt 0:03:18]} 16. g5 {[%emt 0:01:11]} Nd7 {[%emt 0:05:33]} 17. Nd5 {[%emt 0:00:47]} Bxd5 {[%emt 0:04:25]} 18. exd5 {[%emt 0:02:05]} f6 {[%emt 0:08:11]} 19. Be4 {[%emt 0:13:39]} Rab8 {[%emt 0:05:15]} 20. g6 {[%emt 0:01:34]} h6 {[%emt 0:03:09]} 21. d6 {[%emt 0:02:42]} Bxd6 {[%emt 0:05:54]} 22. Bd5+ {[%emt 0:00:11]} Rf7 {[%emt 0:01:43]} 23. Bxf7+ {[%emt 0:00:37]} Kf8 {[%emt 0:00:08]} 24. Be6 {[%emt 0:01:20]} 1-0

[Event "WYCC 2018 G18"]
[Site "Halkidiki"]
[Date "2018.10.20"]
[Round "1"]
[White "Redondo Benavente, Ana"]
[Black "Martos Amiguet, Valentina"]
[Result "1-0"]
[ECO "B22"]
[WhiteElo "2055"]
[BlackElo "1775"]
[Annotator "NA"]
[PlyCount "64"]
[EventDate "2018.10.20"]
[EventType "swiss"]
[EventCountry "GRE"]
[SourceTitle "playchess.com"]
[Source "ChessBase"]
[SourceQuality "1"]
[TimeControl "40/5400+30:1800+30"]

1. e4 {[%emt 0:00:00]} c5 {[%emt 0:00:00]} 2. c3 {[%emt 0:00:00]} d5 {[%emt 0:00:01]} 3. exd5 {[%emt 0:00:00]} Qxd5 {[%emt 0:00:12]} 4. d4 {[%emt 0:00:22]} e6 {[%emt 0:00:28]} 5. Nf3 {[%emt 0:00:23]} Nf6 {[%emt 0:00:10]} 6. Be3 {[%emt 0:00:35]} cxd4 {[%emt 0:01:32]} 7. cxd4 {[%emt 0:00:05]} Nc6 {[%emt 0:00:39]} 8. Nc3 {[%emt 0:00:16]} Qd6 {[%emt 0:00:20]} 9. Bd3 {[%emt 0:04:30]} Be7 {[%emt 0:00:55]} 10. O-O {[%emt 0:00:06]} O-O {[%emt 0:00:46]} 11. Qd2 {[%emt 0:02:39]} Nb4 {[%emt 0:06:27]} 12. Bf4 $11 {[%emt 0:04:43]} Qd8 {[%emt 0:01:28]} 13. Be2 {[%emt 0:04:15]} Nbd5 {[%emt 0:01:26]} 14. Bg3 {[%emt 0:01:13]} b6 {[%emt 0:10:37]} 15. Ne5 {[%emt 0:06:31]} Bb7 {[%emt 0:01:08]} 16. Bf3 {[%emt 0:00:12]} Rc8 {[%emt 0:03:08]} 17. Rac1 {[%emt 0:08:01]} Bb4 {[%emt 0:08:47]} 18. Qd3 {[%emt 0:04:11]} Bd6 {[%emt 0:08:42]} 19. Rfd1 {[%emt 0:10:59]} Qe7 {[%emt 0:01:06]} 20. Bh4 {[%emt 0:03:49]} Rfd8 {[%emt 0:17:53]} 21. Nxd5 {[%emt 0:04:18]} Bxd5 {[%emt 0:01:06]} 22. Bxd5 {[%emt 0:00:51]} Rxc1 {[%emt 0:10:21]} 23. Rxc1 {[%emt 0:00:07]} exd5 {[%emt 0:02:22]} 24. Ng4 {[%emt 0:14:31]} Re8 {[%emt 0:03:40]} 25. Bxf6 {[%emt 0:04:51]} gxf6 {[%emt 0:00:22]} 26. g3 {[%emt 0:01:11]} Qe6 {[%emt 0:06:25]} 27. Qf3 {[%emt 0:01:16]} Kg7 {[%emt 0:03:54]} 28. Ne3 {[%emt 0:00:31]} Bf8 {[%emt 0:02:55]} 29. Nxd5 {[%emt 0:00:57]} Qe4 {[%emt 0:04:27]} 30. Qxf6+ {[%emt 0:01:25]} Kg8 {[%emt 0:00:30]} 31. Qg5+ {[%emt 0:00:33]} Kh8 {[%emt 0:01:42]} 32. Nf6 {[%emt 0:00:26]} Qe7 1-0

[Event "WYCC 2018 G18"]
[Site "Halkidiki"]
[Date "2018.10.20"]
[Round "1"]
[White "Cvitan, Ena"]
[Black "Abeysinghe, H M H Janandani"]
[Result "1-0"]
[ECO "A48"]
[WhiteElo "2034"]
[BlackElo "1698"]
[Annotator "NA"]
[PlyCount "79"]
[EventDate "2018.10.20"]
[EventType "swiss"]
[EventCountry "GRE"]
[SourceTitle "playchess.com"]
[Source "ChessBase"]
[SourceQuality "1"]
[TimeControl "40/5400+30:1800+30"]

1. d4 {[%emt 0:00:00]} Nf6 {[%emt 0:00:00]} 2. Nf3 {[%emt 0:00:00]} g6 {[%emt 0:00:16]} 3. c4 {[%emt 0:00:00]} Bg7 {[%emt 0:00:42]} 4. Nc3 {[%emt 0:00:00]} d6 {[%emt 0:00:08]} 5. e4 {[%emt 0:00:09]} O-O {[%emt 0:00:34]} 6. h3 {[%emt 0:00:05]} Na6 {[%emt 0:00:28]} 7. Be3 {[%emt 0:01:09]} c6 {[%emt 0:01:32]} 8. Be2 {[%emt 0:00:42]} e5 {[%emt 0:00:15]} 9. d5 {[%emt 0:00:16]} cxd5 {[%emt 0:01:04]} 10. cxd5 {[%emt 0:00:46]} Nc5 {[%emt 0:02:11]} 11. Nd2 {[%emt 0:03:26]} Ne8 {[%emt 0:02:30]} 12. g4 {[%emt 0:02:10]} a6 {[%emt 0:01:47]} 13. h4 {[%emt 0:17:51]} b5 {[%emt 0:01:57]} 14. b4 {[%emt 0:03:57]} Nd7 {[%emt 0:04:43]} 15. g5 {[%emt 0:01:32]} f5 {[%emt 0:04:11]} 16. f3 {[%emt 0:08:00]} f4 {[%emt 0:03:20]} 17. Bf2 {[%emt 0:00:47]} Rf7 {[%emt 0:00:53]} 18. Nb3 {[%emt 0:03:04]} h5 {[%emt 0:11:47]} 19. Na5 {[%emt 0:05:41]} Nf8 {[%emt 0:06:01]} 20. O-O {[%emt 0:03:48]} Nh7 {[%emt 0:04:08]} 21. Kh1 {[%emt 0:06:52]} Qd7 {[%emt 0:03:41]} 22. Re1 {[%emt 0:01:27]} Bf8 {[%emt 0:01:49]} 23. Bf1 {[%emt 0:01:11]} Be7 {[%emt 0:01:51]} 24. a4 {[%emt 0:03:34]} bxa4 {[%emt 0:04:53]} 25. Nxa4 {[%emt 0:01:02]} Bd8 {[%emt 0:02:47]} 26. Rc1 {[%emt 0:04:06]} Bb7 {[%emt 0:06:13]} 27. Nc6 {[%emt 0:05:03]} Rc8 {[%emt 0:03:08]} 28. Kh2 {[%emt 0:03:02]} Bxc6 {[%emt 0:03:13]} 29. dxc6 {[%emt 0:00:33]} Rxc6 {[%emt 0:01:07]} 30. Bc4 {[%emt 0:01:06]} Rxc4 {[%emt 0:09:14]} 31. Rxc4 {[%emt 0:00:09]} Nf8 {[%emt 0:00:30]} 32. Nc3 {[%emt 0:01:07]} Ne6 {[%emt 0:01:31]} 33. Nd5 {[%emt 0:00:31]} Kg7 {[%emt 0:02:56]} 34. Qc2 {[%emt 0:00:34]} N6c7 {[%emt 0:01:34]} 35. Nb6 {[%emt 0:02:05]} Qe6 {[%emt 0:01:23]} 36. Rc6 {[%emt 0:01:10]} Kf8 {[%emt 0:01:04]} 37. Rd1 {[%emt 0:01:16]} Kg7 {[%emt 0:01:21]} 38. Nc4 {[%emt 0:02:08]} Be7 {[%emt 0:01:43]} 39. Bb6 {[%emt 0:02:29]} Qd7 {[%emt 0:01:49]} 40. Nxe5 {[%emt 0:00:00]} 1-0

[Event "WYCC 2018 G18"]
[Site "Halkidiki"]
[Date "2018.10.20"]
[Round "1"]
[White "Hng, Mei-En Emmanuelle"]
[Black "Ni Mhuireagain, Eibhia"]
[Result "1-0"]
[ECO "B01"]
[WhiteElo "2020"]
[BlackElo "1655"]
[Annotator "NA"]
[PlyCount "33"]
[EventDate "2018.10.20"]
[EventType "swiss"]
[EventCountry "GRE"]
[SourceTitle "playchess.com"]
[Source "ChessBase"]
[SourceQuality "1"]
[TimeControl "40/5400+30:1800+30"]

1. e4 {[%emt 0:00:00]} d5 {[%emt 0:00:00]} 2. exd5 {[%emt 0:00:00]} Qxd5 {[%emt 0:00:00]} 3. Nc3 {[%emt 0:00:00]} Qd6 {[%emt 0:00:00]} 4. d4 {[%emt 0:00:13]} Nf6 {[%emt 0:00:02]} 5. Bc4 {[%emt 0:04:56]} a6 {[%emt 0:07:24]} 6. Nf3 {[%emt 0:12:06]} b5 {[%emt 0:00:51]} 7. Bb3 {[%emt 0:02:15]} Bb7 {[%emt 0:03:28]} 8. O-O {[%emt 0:20:15]} e6 {[%emt 0:02:45]} 9. Re1 {[%emt 0:03:26]} Be7 {[%emt 0:01:48]} 10. Ng5 {[%emt 0:05:48]} Nd5 {[%emt 0:33:44]} 11. Nce4 {[%emt 0:08:16]} Qd7 {[%emt 0:06:00]} 12. Qh5 {[%emt 0:04:05]} Bxg5 {[%emt 0:00:55]} 13. Qxg5 {[%emt 0:04:33]} f6 {[%emt 0:07:00]} 14. Qh5+ {[%emt 0:09:41]} Qf7 {[%emt 0:04:26]} 15. Nxf6+ {[%emt 0:09:30]} Nxf6 {[%emt 0:03:27]} 16. Rxe6+ {[%emt 0:00:14]} Kf8 {[%emt 0:00:25]} 17. Rxf6 {[%emt 0:00:35]} 1-0

[Event "WYCC 2018 G18"]
[Site "Halkidiki"]
[Date "2018.10.20"]
[Round "1"]
[White "Bauyrzhan, Arnash"]
[Black "Manriquez Abarzua, Maria Belen"]
[Result "1-0"]
[ECO "C50"]
[WhiteElo "2011"]
[BlackElo "1630"]
[Annotator "NA"]
[PlyCount "57"]
[EventDate "2018.10.20"]
[EventType "swiss"]
[EventCountry "GRE"]
[SourceTitle "playchess.com"]
[Source "ChessBase"]
[SourceQuality "1"]
[TimeControl "40/5400+30:1800+30"]

1. e4 {[%emt 0:00:00]} e5 {[%emt 0:00:00]} 2. Nf3 {[%emt 0:00:00]} Nc6 {[%emt 0:00:00]} 3. Bc4 {[%emt 0:00:07]} Bc5 {[%emt 0:00:20]} 4. O-O {[%emt 0:00:48]} Nf6 {[%emt 0:00:33]} 5. d3 {[%emt 0:00:09]} h6 {[%emt 0:04:51]} 6. c3 {[%emt 0:01:42]} O-O {[%emt 0:01:52]} 7. Nbd2 {[%emt 0:02:16]} d6 {[%emt 0:01:49]} 8. a4 {[%emt 0:02:56]} a5 {[%emt 0:01:38]} 9. h3 {[%emt 0:04:31]} Ne7 {[%emt 0:03:15]} 10. d4 {[%emt 0:03:09]} exd4 {[%emt 0:01:30]} 11. cxd4 {[%emt 0:00:09]} Bb4 {[%emt 0:05:48]} 12. e5 {[%emt 0:11:02]} Nfd5 {[%emt 0:08:22]} 13. Ne4 {[%emt 0:04:46]} Nb6 {[%emt 0:06:33]} 14. Bd3 {[%emt 0:02:32]} d5 {[%emt 0:19:19]} 15. Ng3 {[%emt 0:00:34]} Be6 {[%emt 0:01:32]} 16. Bc2 {[%emt 0:05:18]} f5 {[%emt 0:05:08]} 17. exf6 {[%emt 0:06:05]} Rxf6 {[%emt 0:00:09]} 18. Nh4 {[%emt 0:01:18]} Bf7 {[%emt 0:07:07]} 19. Qd3 {[%emt 0:09:18]} Ng6 {[%emt 0:00:42]} 20. Nh5 {[%emt 0:08:23]} Rc6 {[%emt 0:04:48]} 21. Nf5 {[%emt 0:01:00]} Bf8 {[%emt 0:03:02]} 22. b3 {[%emt 0:03:04]} Nd7 {[%emt 0:12:55]} 23. Ba3 {[%emt 0:04:36]} Qg5 {[%emt 0:00:56]} 24. f4 {[%emt 0:08:24]} Qd8 {[%emt 0:04:40]} 25. Bxf8 {[%emt 0:00:25]} Ndxf8 {[%emt 0:00:41]} 26. Nhxg7 {[%emt 0:01:28]} Ne6 {[%emt 0:02:01]} 27. Nxe6 {[%emt 0:00:11]} Rxe6 {[%emt 0:00:19]} 28. Nxh6+ {[%emt 0:00:09]} Kg7 {[%emt 0:00:22]} 29. Nxf7 {[%emt 0:00:17]} 1-0

[Event "WYCC 2018 G18"]
[Site "Halkidiki"]
[Date "2018.10.20"]
[Round "1"]
[White "Li, Yilin"]
[Black "Salas Estrada, Ana Valeria"]
[Result "0-1"]
[ECO "B32"]
[WhiteElo "1993"]
[BlackElo "1593"]
[Annotator "NA"]
[PlyCount "98"]
[EventDate "2018.10.20"]
[EventType "swiss"]
[EventCountry "GRE"]
[SourceTitle "playchess.com"]
[Source "ChessBase"]
[SourceQuality "1"]
[TimeControl "40/5400+30:1800+30"]

1. e4 {[%emt 0:00:00]} c5 {[%emt 0:00:00]} 2. Nf3 {[%emt 0:00:00]} Nc6 {[%emt 0:00:00]} 3. d4 {[%emt 0:00:00]} cxd4 {[%emt 0:00:00]} 4. Nxd4 {[%emt 0:00:03]} g6 {[%emt 0:00:19]} 5. Be3 {[%emt 0:01:42]} Bg7 {[%emt 0:00:09]} 6. Nc3 {[%emt 0:00:49]} Nf6 {[%emt 0:00:37]} 7. Be2 {[%emt 0:02:22]} O-O {[%emt 0:02:35]} 8. Nb3 {[%emt 0:04:31]} a6 {[%emt 0:04:39]} 9. a4 {[%emt 0:01:47]} d6 {[%emt 0:05:04]} 10. O-O {[%emt 0:01:54]} Bd7 {[%emt 0:02:24]} 11. a5 {[%emt 0:04:09]} Qc8 {[%emt 0:05:51]} 12. Na4 {[%emt 0:06:14]} Rb8 {[%emt 0:04:04]} 13. f3 {[%emt 0:02:26]} Be6 {[%emt 0:07:59]} 14. Nb6 {[%emt 0:05:01]} Qd8 {[%emt 0:09:20]} 15. Kh1 {[%emt 0:11:09]} Nd7 {[%emt 0:10:00]} 16. Nd4 {[%emt 0:09:14]} Nxd4 {[%emt 0:07:36]} 17. Nxd7 {[%emt 0:04:30]} Nxc2 {[%emt 0:07:26]} 18. Qxc2 {[%emt 0:08:45]} Qxd7 {[%emt 0:00:28]} 19. Ra3 {[%emt 0:06:32]} Rbc8 {[%emt 0:01:26]} 20. Qd2 {[%emt 0:05:43]} Qc6 {[%emt 0:03:24]} 21. Bd3 {[%emt 0:09:56]} Rfd8 {[%emt 0:05:48]} 22. Bb6 {[%emt 0:03:28]} Rd7 {[%emt 0:01:54]} 23. Qe2 {[%emt 0:00:57]} d5 {[%emt 0:05:44]} 24. e5 {[%emt 0:03:40]} d4 {[%emt 0:04:43]} 25. b4 {[%emt 0:03:01]} Qd5 {[%emt 0:04:48]} 26. f4 {[%emt 0:02:36]} Bf5 {[%emt 0:01:18]} 27. b5 {[%emt 0:01:58]} Bxd3 {[%emt 0:00:25]} 28. Qxd3 {[%emt 0:00:05]} axb5 {[%emt 0:00:22]} 29. Rd1 {[%emt 0:00:36]} Qc4 {[%emt 0:01:46]} 30. Qxc4 {[%emt 0:01:16]} Rxc4 {[%emt 0:00:14]} 31. Rad3 {[%emt 0:00:01]} Bh6 {[%emt 0:00:22]} 32. g3 {[%emt 0:00:15]} g5 {[%emt 0:00:36]} 33. f5 {[%emt 0:00:40]} Bg7 {[%emt 0:00:17]} 34. Bxd4 {[%emt 0:00:18]} b4 {[%emt 0:02:18]} 35. f6 {[%emt 0:00:35]} Bf8 {[%emt 0:00:54]} 36. Be3 {[%emt 0:00:37]} Rxd3 {[%emt 0:00:23]} 37. Rxd3 {[%emt 0:00:01]} Rc3 {[%emt 0:01:08]} 38. Rxc3 {[%emt 0:01:26]} bxc3 {[%emt 0:00:13]} 39. fxe7 {[%emt 0:00:37]} Bxe7 {[%emt 0:00:19]} 40. Bc1 {[%emt 0:00:00]} Bb4 {[%emt 0:00:00]} 41. Kg2 {[%emt 0:00:13]} h6 {[%emt 0:03:13]} 42. Kf3 {[%emt 0:08:26]} Bxa5 {[%emt 0:00:33]} 43. h4 {[%emt 0:00:23]} gxh4 {[%emt 0:02:47]} 44. Bxh6 {[%emt 0:01:03]} h3 {[%emt 0:01:19]} 45. g4 {[%emt 0:00:51]} b5 {[%emt 0:00:18]} 46. Bf4 {[%emt 0:01:03]} c2 {[%emt 0:01:38]} 47. Kg3 {[%emt 0:00:30]} b4 {[%emt 0:00:17]} 48. Kxh3 {[%emt 0:00:07]} b3 {[%emt 0:00:11]} 49. Bc1 {[%emt 0:00:08]} Bc3 {[%emt 0:00:06]} 0-1

[Event "WYCC 2018 G18"]
[Site "Halkidiki"]
[Date "2018.10.20"]
[Round "1"]
[White "Golsta, Madara"]
[Black "Sargsyan, Anna M."]
[Result "0-1"]
[ECO "B18"]
[WhiteElo "1938"]
[BlackElo "2331"]
[Annotator "NA"]
[PlyCount "66"]
[EventDate "2018.10.20"]
[EventType "swiss"]
[EventCountry "GRE"]
[SourceTitle "playchess.com"]
[Source "ChessBase"]
[SourceQuality "1"]
[TimeControl "40/5400+30:1800+30"]

1. e4 {[%emt 0:00:11]} c6 {[%emt 0:00:00]} 2. d4 {[%emt 0:01:04]} d5 {[%emt 0:00:00]} 3. Nc3 {[%emt 0:00:59]} dxe4 {[%emt 0:00:00]} 4. Nxe4 {[%emt 0:00:08]} Bf5 {[%emt 0:00:00]} 5. Ng3 {[%emt 0:02:20]} Bg6 {[%emt 0:04:05]} 6. h4 {[%emt 0:01:38]} h6 {[%emt 0:00:07]} 7. f4 {[%emt 0:04:17]} Nf6 {[%emt 0:04:33]} 8. Nf3 {[%emt 0:00:46]} e6 {[%emt 0:02:54] LiveBook: 19 Partien} 9. h5 {[%emt 0:00:47] B18: Classical Caro-Kann: 4...Bf5 sidelines} (9. Ne5 Bh7 10. Bc4 Nbd7 11. Qe2 Nd5 12. c3 Be7 13. Nh5 O-O 14. Bd2 c5 15. Bxd5 Nxe5 16. Qxe5 Bf6 17. Nxf6+ gxf6 {1-0 (28) Mamedyarov,S (2719)-Grischuk,A (2736) Moscow 2009}) 9... Bh7 {[%emt 0:00:07]} 10. Bd3 {[%emt 0:00:33]} Bxd3 {[%emt 0:00:12]} 11. Qxd3 {[%emt 0:00:09]} c5 {[%emt 0:06:40]} 12. Be3 {[%emt 0:06:15]} Nc6 {[%emt 0:00:20]} 13. O-O-O {[%emt 0:03:48]} Qa5 {[%emt 0:08:31]} 14. Qb3 {[%emt 0:07:52]} O-O-O $146 {[%emt 0:00:59]} ({Predecessor:} 14... Qb4 15. dxc5 Nd5 16. Bf2 Bxc5 17. Bxc5 Qxc5 {1-0 (44) Ali Marandi,C (2315)-Xaxiris,E (2062) Neos Marmaras 2012}) 15. Ne5 {[%emt 0:12:53]} Nxe5 {[%emt 0:02:48]} 16. fxe5 {[%emt 0:02:18]} Nd5 {[%emt 0:00:32]} 17. Bd2 {[%emt 0:03:16]} Qc7 {[%emt 0:03:04]} 18. Rh4 {[%emt 0:03:09]} Nb6 {[%emt 0:05:17]} 19. Ba5 {[%emt 0:11:41]} Be7 {[%emt 0:02:39]} 20. Rg4 {[%emt 0:01:46]} (20. Re4 $11) 20... Rxd4 {[%emt 0:01:14]} 21. Rdxd4 {[%emt 0:02:03]} cxd4 {[%emt 0:00:08]} 22. Rxd4 {[%emt 0:01:36]} Qxe5 $17 {[%emt 0:03:29]} 23. Qc3+ {[%emt 0:04:20]} Qc5 {[%emt 0:00:57]} 24. Qxc5+ {[%emt 0:01:42]} Bxc5 {[%emt 0:00:08]} 25. Rg4 {[%emt 0:00:14]} Rd8 {[%emt 0:00:40]} 26. Nf1 {[%emt 0:04:33]} Bd4 {[%emt 0:02:36]} 27. c3 {[%emt 0:03:05]} Bf6 {[%emt 0:00:16]} 28. Bxb6 {[%emt 0:00:55]} axb6 {[%emt 0:00:07]} 29. Kc2 {[%emt 0:01:29]} Rd5 {[%emt 0:01:14]} 30. Ng3 {[%emt 0:01:30]} b5 {[%emt 0:00:21]} 31. Kb3 {[%emt 0:01:47]} Kd7 {[%emt 0:00:18]} 32. Rf4 {[%emt 0:03:54]} Ke7 {[%emt 0:00:50]} 33. c4 {[%emt 0:01:24]} Rd3+ {[%emt 0:00:10]} 0-1

[Event "WYCC 2018 G18"]
[Site "Halkidiki"]
[Date "2018.10.20"]
[Round "1"]
[White "Belluire, Beatrice"]
[Black "Di Benedetto, Desiree"]
[Result "0-1"]
[ECO "C11"]
[WhiteElo "1931"]
[BlackElo "2321"]
[Annotator "NA"]
[PlyCount "88"]
[EventDate "2018.10.20"]
[EventType "swiss"]
[EventCountry "GRE"]
[SourceTitle "playchess.com"]
[Source "ChessBase"]
[SourceQuality "1"]
[TimeControl "40/5400+30:1800+30"]

1. e4 {[%emt 0:00:00]} e6 {[%emt 0:00:00]} 2. d4 {[%emt 0:00:00]} d5 {[%emt 0:00:00]} 3. Nc3 {[%emt 0:00:00]} Nf6 {[%emt 0:00:00]} 4. e5 {[%emt 0:00:00]} Nfd7 {[%emt 0:00:00]} 5. f4 {[%emt 0:00:00]} c5 {[%emt 0:00:04]} 6. Nf3 {[%emt 0:00:00]} Nc6 {[%emt 0:00:18]} 7. Be3 {[%emt 0:00:00]} Be7 {[%emt 0:00:28]} 8. Qd2 {[%emt 0:00:43]} O-O {[%emt 0:00:13]} 9. dxc5 {[%emt 0:01:18]} Nxc5 {[%emt 0:00:24]} 10. O-O-O {[%emt 0:00:25]} a6 {[%emt 0:01:26]} 11. Bxc5 {[%emt 0:15:51]} Bxc5 {[%emt 0:00:05]} 12. Bd3 {[%emt 0:00:02]} h6 {[%emt 0:14:37]} 13. g4 {[%emt 0:09:29]} f6 {[%emt 0:04:59]} 14. Rhf1 {[%emt 0:24:25]} fxe5 {[%emt 0:22:22]} 15. Nxe5 {[%emt 0:04:24]} Nxe5 {[%emt 0:01:25]} 16. fxe5 {[%emt 0:00:02]} Bd7 {[%emt 0:17:52]} 17. Kb1 $17 {[%emt 0:10:39]} (17. Ne2 $15) 17... Qg5 {[%emt 0:09:22]} 18. Qxg5 {[%emt 0:04:47]} hxg5 {[%emt 0:00:06]} 19. Ne2 {[%emt 0:05:14]} b5 {[%emt 0:04:11]} 20. Ng1 {[%emt 0:01:34]} Bxg1 {[%emt 0:05:29]} 21. Rxg1 {[%emt 0:05:42]} Rf4 {[%emt 0:01:02]} 22. Rdf1 {[%emt 0:00:44]} Raf8 {[%emt 0:00:22]} 23. Kc1 {[%emt 0:01:27]} Bc6 {[%emt 0:02:31]} 24. h3 {[%emt 0:12:44]} Rf3 {[%emt 0:01:40]} 25. Rxf3 {[%emt 0:01:13]} Rxf3 {[%emt 0:00:03]} 26. Rf1 {[%emt 0:00:01]} Re3 {[%emt 0:12:31]} 27. Bg6 {[%emt 0:00:07]} Rxe5 {[%emt 0:00:37]} 28. Bf7+ {[%emt 0:00:10]} Kh7 {[%emt 0:01:07]} 29. Kd2 {[%emt 0:01:13]} Re4 {[%emt 0:00:41]} 30. h4 {[%emt 0:01:16]} gxh4 {[%emt 0:00:22]} 31. g5 {[%emt 0:00:24]} e5 {[%emt 0:00:18]} 32. Be6 {[%emt 0:01:11]} Rf4 {[%emt 0:00:26]} 33. Re1 {[%emt 0:00:44]} e4 {[%emt 0:00:31]} 34. Ke3 {[%emt 0:00:13]} Rf3+ {[%emt 0:00:30]} 35. Kd4 {[%emt 0:00:01]} Kg6 {[%emt 0:00:34]} 36. Bxd5 {[%emt 0:01:07]} Bxd5 {[%emt 0:00:10]} 37. Kxd5 {[%emt 0:00:02]} Kxg5 {[%emt 0:00:13]} 38. Kxe4 {[%emt 0:00:34]} Rg3 {[%emt 0:00:55]} 39. Rd1 {[%emt 0:00:42]} h3 {[%emt 0:00:22]} 40. Rd7 {[%emt 0:00:00]} h2 {[%emt 0:00:00]} 41. Rxg7+ {[%emt 0:00:18]} Kh6 {[%emt 0:01:38]} 42. Rxg3 {[%emt 0:00:24]} h1=Q+ {[%emt 0:00:07]} 43. Kf4 {[%emt 0:01:53]} Qc1+ {[%emt 0:02:43]} 44. Kg4 {[%emt 0:00:51]} Qxb2 {[%emt 0:00:34]} 0-1